[Event "Czech Open GM 2020"]
[Site "Pardubice"]
[Date "2020.09.26"]
[Round "7.15"]
[White "Lizak, Peter"]
[Black "Wedda, Dries"]
[Result "1-0"]
[ECO "E08"]
[WhiteElo "2457"]
[BlackElo "2246"]
[Annotator "ChessBase"]
[PlyCount "165"]
[EventDate "2020.09.21"]
[EventCountry "CZE"]
[SourceTitle "playchess.com"]
[Source "ChessBase"]
[SourceQuality "1"]
[TimeControl "40/5400+30:1800+30"]

1. d4 {[%emt 0:05:42]} Nf6 {[%emt 0:00:00]} 2. Nf3 {[%emt 0:00:06]} d5 {[%emt 0:00:00]} 3. c4 {[%emt 0:01:16]} e6 {[%emt 0:00:00]} 4. g3 {[%emt 0:02:35]} Bb4+ {[%emt 0:01:02]} 5. Bd2 {[%emt 0:01:09]} Be7 {[%emt 0:00:50]} 6. Bg2 {[%emt 0:00:19]} O-O {[%emt 0:00:15]} 7. O-O {[%emt 0:00:20]} Nbd7 {[%emt 0:00:11]} 8. Qc2 {[%emt 0:03:05]} c6 {[%emt 0:00:31]} 9. Bf4 {[%emt 0:07:12]} Ne4 {[%emt 0:01:21]} 10. Nbd2 {[%emt 0:04:15]} g5 {[%emt 0:08:02]} 11. Be3 {[%emt 0:01:47]} Nd6 {[%emt 0:01:37]} 12. cxd5 {[%emt 0:18:49]} cxd5 {[%emt 0:11:38]} 13. Nb3 {[%emt 0:00:16]} b6 {[%emt 0:01:48]} 14. Ne5 {[%emt 0:04:15]} Bb7 {[%emt 0:07:40]} 15. Rac1 {[%emt 0:11:05]} Nf5 {[%emt 0:08:33]} 16. Qd3 {[%emt 0:08:42]} Nxe5 {[%emt 0:04:45]} 17. dxe5 {[%emt 0:00:04]} Nxe3 {[%emt 0:00:15]} 18. Qxe3 {[%emt 0:00:23]} a5 {[%emt 0:10:37]} 19. Nd4 {[%emt 0:01:15]} Bc5 {[%emt 0:05:46]} 20. Qd2 {[%emt 0:04:37]} Bb4 {[%emt 0:04:59]} 21. Qe3 {[%emt 0:00:10]} Bc5 {[%emt 0:00:31]} 22. Rc2 {[%emt 0:00:18]} Rc8 {[%emt 0:03:09]} 23. Rd2 {[%emt 0:03:38]} Bb4 {[%emt 0:00:58]} 24. Rdd1 {[%emt 0:00:25]} Ba6 {[%emt 0:05:10]} 25. h3 {[%emt 0:14:20]} Rc4 26. Bf3 {[%emt 0:01:41]} Bc5 27. b3 {[%emt 0:01:49]} Rc2 {[%emt 0:07:57]} 28. Rd2 {[%emt 0:00:00]} Rxd2 {[%emt 0:00:22]} 29. Qxd2 {[%emt 0:00:00]} h6 {[%emt 0:01:31]} 30. Rd1 {[%emt 0:00:57]} Qc7 {[%emt 0:02:03]} 31. Qe3 {[%emt 0:00:57]} Rc8 {[%emt 0:02:19]} 32. h4 {[%emt 0:02:19]} Be7 {[%emt 0:00:38]} 33. Bg4 {[%emt 0:01:05]} Kh7 {[%emt 0:04:12]} 34. Qf3 {[%emt 0:00:53]} Rf8 {[%emt 0:01:48]} 35. hxg5 {[%emt 0:00:08]} hxg5 {[%emt 0:01:28]} 36. Bxe6 {[%emt 0:00:46]} Qxe5 {[%emt 0:01:38]} 37. Bxd5 {[%emt 0:01:13]} Bc5 {[%emt 0:03:02]} 38. e3 {[%emt 0:00:28]} Bc8 {[%emt 0:01:20]} 39. Kg2 {[%emt 0:00:28]} g4 {[%emt 0:00:43]} 40. Qe4+ {[%emt 0:00:37]} Qxe4+ {[%emt 0:00:14]} 41. Bxe4+ {[%emt 0:30:02]} f5 {[%emt 0:01:25]} 42. Bc6 {[%emt 0:00:00]} Rf6 {[%emt 0:05:17]} 43. Ba8 {[%emt 0:00:00]} Rd6 {[%emt 0:02:26]} 44. Rc1 {[%emt 0:00:00]} Bd7 {[%emt 0:02:00]} 45. Rd1 {[%emt 0:00:00]} Bc8 {[%emt 0:00:12]} 46. f3 {[%emt 0:00:00]} Kg7 {[%emt 0:05:12]} 47. Rd2 {[%emt 0:00:00]} Bd7 {[%emt 0:02:04]} 48. Bb7 {[%emt 0:00:00]} Kg6 {[%emt 0:03:54]} 49. Rd1 {[%emt 0:00:48]} Kg7 {[%emt 0:02:16]} 50. f4 {[%emt 0:01:33]} Kf6 {[%emt 0:05:03]} 51. Kf2 {[%emt 0:00:07]} a4 {[%emt 0:01:21]} 52. Ke2 {[%emt 0:01:55]} axb3 {[%emt 0:01:34]} 53. axb3 {[%emt 0:00:02]} Be6 {[%emt 0:02:42]} 54. Nxe6 {[%emt 0:00:35]} Rxe6 {[%emt 0:00:41]} 55. e4 {[%emt 0:02:10]} fxe4 {[%emt 0:00:14]} 56. Rh1 {[%emt 0:00:36]} Re7 {[%emt 0:00:42]} 57. Bd5 {[%emt 0:00:24]} e3 {[%emt 0:00:36]} 58. Rh6+ {[%emt 0:00:14]} Kf5 {[%emt 0:00:58]} 59. Rh5+ {[%emt 0:00:03]} Kf6 {[%emt 0:00:06]} 60. Rh6+ {[%emt 0:00:41]} Kf5 {[%emt 0:00:08]} 61. Bc4 {[%emt 0:00:45]} Ke4 {[%emt 0:01:30]} 62. Re6+ {[%emt 0:00:18]} Rxe6 {[%emt 0:00:29]} 63. Bxe6 {[%emt 0:00:02]} Kd4 {[%emt 0:01:00]} 64. Bxg4 {[%emt 0:00:05]} Kd5 {[%emt 0:00:06]} 65. Bf5 {[%emt 0:00:13]} Kd4 {[%emt 0:00:48]} 66. Bh7 {[%emt 0:00:39]} Bd6 {[%emt 0:00:16]} 67. Bg6 {[%emt 0:00:50]} Bc7 {[%emt 0:00:48]} 68. Be8 {[%emt 0:00:08]} Bd6 {[%emt 0:00:20]} 69. Bb5 {[%emt 0:00:35]} Ke4 {[%emt 0:00:32]} 70. Bc6+ {[%emt 0:00:21]} Kd4 {[%emt 0:00:15]} 71. Bb7 {[%emt 0:00:50]} Bc7 {[%emt 0:00:16]} 72. Kf3 {[%emt 0:00:16]} b5 {[%emt 0:01:04]} 73. Bc6 {[%emt 0:01:10]} b4 {[%emt 0:00:14]} 74. Bb5 {[%emt 0:00:12]} Kc3 {[%emt 0:00:48]} 75. Bc4 {[%emt 0:00:07]} Kd2 {[%emt 0:00:14]} 76. g4 {[%emt 0:00:23]} Bd8 {[%emt 0:00:10]} 77. g5 {[%emt 0:00:10]} Be7 {[%emt 0:00:04]} 78. Kg4 {[%emt 0:01:38]} e2 {[%emt 0:00:22]} 79. Bxe2 {[%emt 0:00:02]} Kxe2 {[%emt 0:00:04]} 80. f5 {[%emt 0:00:05]} Kd3 {[%emt 0:00:06]} 81. f6 {[%emt 0:00:05]} Bd8 {[%emt 0:00:05]} 82. Kf5 {[%emt 0:00:05]} Kc3 {[%emt 0:00:44]} 83. g6 {[%emt 0:00:07]} 1-0

[Event "Czech Open GM 2020"]
[Site "Pardubice"]
[Date "2020.09.26"]
[Round "7.16"]
[White "Koziak, Vitali"]
[Black "Ludvik, Tomas"]
[Result "1-0"]
[ECO "D30"]
[WhiteElo "2434"]
[BlackElo "2218"]
[Annotator "ChessBase"]
[PlyCount "65"]
[EventDate "2020.09.21"]
[EventCountry "CZE"]
[SourceTitle "playchess.com"]
[Source "ChessBase"]
[SourceQuality "1"]
[TimeControl "40/5400+30:1800+30"]

1. c4 {[%emt 0:00:00]} e6 {[%emt 0:01:16]} 2. Nf3 {[%emt 0:00:00]} d5 {[%emt 0:00:17]} 3. d4 {[%emt 0:01:43]} c6 4. e3 {[%emt 0:00:00]} Nf6 {[%emt 0:00:55]} 5. b3 {[%emt 0:00:10]} Ne4 {[%emt 0:02:08]} 6. Nbd2 {[%emt 0:03:17]} Bb4 {[%emt 0:04:15]} 7. Bd3 {[%emt 0:07:16]} f5 {[%emt 0:04:52]} 8. O-O {[%emt 0:01:45]} Nd7 {[%emt 0:00:30]} 9. Bb2 {[%emt 0:07:39]} Qf6 {[%emt 0:02:38]} 10. Qc1 {[%emt 0:09:19]} O-O {[%emt 0:16:03]} 11. Ba3 {[%emt 0:00:27]} a5 {[%emt 0:03:18]} 12. Bxb4 {[%emt 0:01:01]} axb4 {[%emt 0:00:02]} 13. a3 {[%emt 0:00:25]} bxa3 {[%emt 0:03:48]} 14. Rxa3 {[%emt 0:00:13]} Rxa3 {[%emt 0:00:04]} 15. Qxa3 {[%emt 0:00:05]} e5 {[%emt 0:09:19]} 16. cxd5 {[%emt 0:02:01]} cxd5 {[%emt 0:00:31]} 17. Qa5 {[%emt 0:06:55]} Qd6 {[%emt 0:02:24]} 18. dxe5 {[%emt 0:02:29]} Nxe5 {[%emt 0:00:30]} 19. Nxe5 {[%emt 0:04:47]} Nxd2 {[%emt 0:04:37]} 20. Qxd2 {[%emt 0:00:33]} Qxe5 {[%emt 0:00:05]} 21. Qb4 {[%emt 0:14:46]} f4 {[%emt 0:05:43]} 22. Bxh7+ {[%emt 0:00:22]} Kf7 {[%emt 0:04:11]} 23. exf4 {[%emt 0:20:04]} Qh5 {[%emt 0:01:44]} 24. Bb1 {[%emt 0:01:40]} Rh8 {[%emt 0:10:53]} 25. h3 {[%emt 0:00:14]} Rh6 {[%emt 0:02:12]} 26. f5 {[%emt 0:01:58]} b6 {[%emt 0:01:53]} 27. Rc1 {[%emt 0:05:01]} Bd7 {[%emt 0:03:41]} 28. Qd4 {[%emt 0:02:21]} Rd6 {[%emt 0:01:07]} 29. Be4 {[%emt 0:00:33]} Kf8 {[%emt 0:01:51]} 30. Qb4 {[%emt 0:02:59]} Ke7 {[%emt 0:03:14]} 31. Re1 {[%emt 0:01:25]} Qh6 {[%emt 0:01:15]} 32. Bxd5+ {[%emt 0:00:16]} Kd8 {[%emt 0:00:41]} 33. Be6 {[%emt 0:00:39]} 1-0

[Event "Czech Open GM 2020"]
[Site "Pardubice"]
[Date "2020.09.26"]
[Round "7.17"]
[White "Arkell, Keith C"]
[Black "Seitz, Patrick"]
[Result "1-0"]
[ECO "E65"]
[WhiteElo "2429"]
[BlackElo "2186"]
[Annotator "ChessBase"]
[PlyCount "145"]
[EventDate "2020.09.21"]
[EventCountry "CZE"]
[SourceTitle "playchess.com"]
[Source "ChessBase"]
[SourceQuality "1"]
[TimeControl "40/5400+30:1800+30"]

1. Nf3 {[%emt 0:00:37]} Nf6 2. c4 {[%emt 0:00:34]} g6 {[%emt 0:01:05]} 3. Nc3 {[%emt 0:00:08]} Bg7 {[%emt 0:00:20]} 4. d4 {[%emt 0:00:07]} d6 {[%emt 0:00:05]} 5. g3 {[%emt 0:00:04]} O-O {[%emt 0:00:19]} 6. Bg2 {[%emt 0:00:05]} c5 {[%emt 0:00:36]} 7. O-O {[%emt 0:00:17]} a6 {[%emt 0:04:45]} 8. dxc5 {[%emt 0:00:13]} dxc5 {[%emt 0:00:06]} 9. Be3 {[%emt 0:01:08]} Nbd7 {[%emt 0:03:28]} 10. h3 {[%emt 0:00:54]} h6 {[%emt 0:03:11]} 11. Qd2 {[%emt 0:00:13]} Kh7 {[%emt 0:00:09]} 12. Rfd1 {[%emt 0:00:44]} Qc7 {[%emt 0:03:08]} 13. Rac1 {[%emt 0:00:21]} Ra7 {[%emt 0:01:39]} 14. Nd5 {[%emt 0:01:12]} Nxd5 {[%emt 0:01:30]} 15. cxd5 {[%emt 0:00:05]} b6 {[%emt 0:01:25]} 16. b4 {[%emt 0:03:50]} a5 {[%emt 0:12:18]} 17. bxc5 {[%emt 0:02:08]} Nxc5 {[%emt 0:00:06]} 18. Nd4 {[%emt 0:00:32]} Ba6 {[%emt 0:23:08]} 19. Nb3 {[%emt 0:04:31]} Qe5 {[%emt 0:08:41]} 20. Nxc5 {[%emt 0:01:53]} bxc5 {[%emt 0:00:06]} 21. Bxc5 {[%emt 0:00:28]} Rc7 {[%emt 0:03:37]} 22. Bd4 {[%emt 0:06:48]} Qd6 {[%emt 0:00:43]} 23. Bxg7 {[%emt 0:00:13]} Kxg7 {[%emt 0:00:06]} 24. Rc6 {[%emt 0:01:38]} Rxc6 {[%emt 0:02:40]} 25. dxc6 {[%emt 0:00:06]} Qxd2 {[%emt 0:01:24]} 26. Rxd2 {[%emt 0:00:05]} Kf6 {[%emt 0:01:10]} 27. Rb2 {[%emt 0:08:06]} e6 {[%emt 0:02:59]} 28. f4 {[%emt 0:00:48]} Ke7 {[%emt 0:03:35]} 29. Kf2 {[%emt 0:04:25]} Rc8 {[%emt 0:02:18]} 30. Rb6 {[%emt 0:00:20]} Bc4 {[%emt 0:00:29]} 31. Rb7+ {[%emt 0:00:07]} Kd6 {[%emt 0:01:47]} 32. Rxf7 {[%emt 0:04:28]} Bxa2 {[%emt 0:02:25]} 33. Ra7 {[%emt 0:00:35]} Bd5 {[%emt 0:00:23]} 34. Rxa5 {[%emt 0:04:41]} Bxg2 {[%emt 0:00:31]} 35. Kxg2 {[%emt 0:00:04]} Rxc6 {[%emt 0:00:06]} 36. Kf3 {[%emt 0:08:30]} Ke7 37. g4 {[%emt 0:02:10]} Rc7 {[%emt 0:02:36]} 38. h4 Kf6 {[%emt 0:04:50]} 39. g5+ {[%emt 0:04:08]} hxg5 {[%emt 0:00:12]} 40. hxg5+ {[%emt 0:00:07]} Kf7 {[%emt 0:00:09]} 41. Ke4 {[%emt 0:00:44]} Rb7 {[%emt 0:06:40]} 42. Ke5 {[%emt 0:00:49]} Ke7 {[%emt 0:00:27]} 43. Rc5 {[%emt 0:01:14]} Ra7 {[%emt 0:02:18]} 44. Rb5 {[%emt 0:00:06]} Rc7 {[%emt 0:00:06]} 45. Kd4 {[%emt 0:10:05]} Rd7+ {[%emt 0:02:21]} 46. Kc4 {[%emt 0:00:26]} Rc7+ {[%emt 0:01:43]} 47. Kd3 {[%emt 0:02:44]} Ra7 {[%emt 0:00:31]} 48. Ke4 {[%emt 0:01:22]} Ra4+ {[%emt 0:00:54]} 49. Kf3 {[%emt 0:00:02]} Ra7 {[%emt 0:00:31]} 50. Rb1 {[%emt 0:00:15]} Rc7 {[%emt 0:12:04]} 51. Rh1 {[%emt 0:00:53]} Rc3+ {[%emt 0:00:54]} 52. e3 {[%emt 0:00:23]} e5 {[%emt 0:00:36]} 53. Rh7+ {[%emt 0:01:14]} Ke6 {[%emt 0:00:09]} 54. Rg7 {[%emt 0:00:17]} exf4 {[%emt 0:00:35]} 55. Kxf4 {[%emt 0:00:10]} Rc1 {[%emt 0:01:20]} 56. Rxg6+ {[%emt 0:00:07]} Ke7 {[%emt 0:00:08]} 57. Ra6 {[%emt 0:00:47]} Rc5 {[%emt 0:02:26]} 58. g6 {[%emt 0:00:22]} Kf8 {[%emt 0:00:54]} 59. Ra7 {[%emt 0:00:30]} Kg8 {[%emt 0:03:04]} 60. e4 {[%emt 0:00:20]} Rc1 {[%emt 0:05:48]} 61. Kf5 {[%emt 0:00:49]} Rf1+ {[%emt 0:00:49]} 62. Ke6 {[%emt 0:00:16]} Rg1 {[%emt 0:01:22]} 63. g7 {[%emt 0:00:27]} Rg6+ {[%emt 0:01:43]} 64. Kd5 {[%emt 0:00:18]} Rg1 {[%emt 0:01:00]} 65. e5 {[%emt 0:01:50]} Rd1+ {[%emt 0:01:08]} 66. Ke6 {[%emt 0:00:12]} Rd2 {[%emt 0:00:24]} 67. Rd7 {[%emt 0:02:27]} Ra2 {[%emt 0:00:28]} 68. Kd6 {[%emt 0:02:37]} Ra6+ {[%emt 0:00:40]} 69. Kd5 {[%emt 0:00:12]} Ra5+ {[%emt 0:00:14]} 70. Ke4 {[%emt 0:00:14]} Ra1 {[%emt 0:00:08]} 71. e6 {[%emt 0:00:11]} Re1+ {[%emt 0:00:59]} 72. Kd5 {[%emt 0:00:08]} Rg1 {[%emt 0:00:46]} 73. Rd8+ {[%emt 0:00:46]} 1-0

[Event "Czech Open GM 2020"]
[Site "Pardubice"]
[Date "2020.09.26"]
[Round "7.18"]
[White "Ochedzan, Tymon"]
[Black "Pantzar, Milton"]
[Result "0-1"]
[ECO "B15"]
[WhiteElo "2214"]
[BlackElo "2424"]
[Annotator "ChessBase"]
[PlyCount "104"]
[EventDate "2020.09.21"]
[EventCountry "CZE"]
[SourceTitle "playchess.com"]
[Source "ChessBase"]
[SourceQuality "1"]
[TimeControl "40/5400+30:1800+30"]

1. e4 {[%emt 0:13:14]} c6 {[%emt 0:00:08]} 2. d4 {[%emt 0:00:28]} d5 {[%emt 0:00:07]} 3. Nc3 {[%emt 0:00:55]} dxe4 {[%emt 0:00:07]} 4. Nxe4 {[%emt 0:00:09]} Nf6 {[%emt 0:00:07]} 5. Nxf6+ {[%emt 0:01:06]} exf6 {[%emt 0:00:48]} 6. c3 {[%emt 0:00:37]} Bd6 {[%emt 0:00:10]} 7. Bd3 {[%emt 0:01:09]} O-O {[%emt 0:00:20]} 8. Qc2 {[%emt 0:00:34]} Re8+ {[%emt 0:00:16]} 9. Ne2 {[%emt 0:02:15]} h5 {[%emt 0:00:30]} 10. O-O {[%emt 0:01:16]} h4 {[%emt 0:01:05]} 11. Nf4 {[%emt 0:01:38]} Nd7 {[%emt 0:09:06]} 12. Qd1 {[%emt 0:02:05]} g6 {[%emt 0:20:17]} 13. Bxg6 {[%emt 0:17:42]} Bxf4 {[%emt 0:13:09]} 14. Qb3 {[%emt 0:20:09]} Ne5 {[%emt 0:07:30]} 15. dxe5 {[%emt 0:00:36]} Be6 {[%emt 0:00:24]} 16. Qc2 {[%emt 0:04:31]} Bxc1 {[%emt 0:01:27]} 17. Bh7+ {[%emt 0:00:33]} Kh8 {[%emt 0:02:07]} 18. Raxc1 {[%emt 0:01:24]} fxe5 {[%emt 0:03:27]} 19. f4 {[%emt 0:03:39]} h3 {[%emt 0:10:43]} 20. fxe5 {[%emt 0:08:18]} hxg2 {[%emt 0:03:21]} 21. Rf2 {[%emt 0:06:50]} Qg5 {[%emt 0:02:51]} 22. Re1 {[%emt 0:01:13]} Rad8 {[%emt 0:01:56]} 23. Bd3 {[%emt 0:05:12]} Rg8 {[%emt 0:01:30]} 24. Qe2 {[%emt 0:01:49]} Rg7 {[%emt 0:02:59]} 25. Bc4 {[%emt 0:04:07]} Rdg8 {[%emt 0:10:19]} 26. Bxe6 {[%emt 0:01:09]} fxe6 {[%emt 0:00:02]} 27. Rf6 {[%emt 0:03:28]} Qh4 {[%emt 0:01:53]} 28. Qe4 {[%emt 0:02:30]} Rg4 {[%emt 0:02:14]} 29. Qe3 {[%emt 0:00:26]} R4g5 {[%emt 0:00:24]} 30. Rf4 {[%emt 0:01:24]} Qh6 {[%emt 0:02:34]} 31. Rf3 {[%emt 0:01:13]} Qh7 {[%emt 0:01:56]} 32. Rh3 {[%emt 0:00:57]} Rh5 {[%emt 0:00:01]} 33. Rxh5 {[%emt 0:00:05]} Qxh5 {[%emt 0:00:04]} 34. Qf4 {[%emt 0:01:20]} Kh7 {[%emt 0:00:47]} 35. Qf6 {[%emt 0:01:45]} Qg4 {[%emt 0:00:47]} 36. a4 {[%emt 0:01:41]} Rg6 {[%emt 0:00:54]} 37. Qf7+ {[%emt 0:00:30]} Rg7 {[%emt 0:00:08]} 38. Qf6 {[%emt 0:00:59]} a5 {[%emt 0:01:09]} 39. b3 {[%emt 0:00:54]} b5 {[%emt 0:00:26]} 40. Qf2 {[%emt 0:01:57]} bxa4 {[%emt 0:00:51]} 41. Qc2+ {[%emt 0:05:26]} Qg6 {[%emt 0:04:12]} 42. Qxg6+ {[%emt 0:09:16]} Kxg6 {[%emt 0:00:25]} 43. bxa4 {[%emt 0:01:22]} Kf5 {[%emt 0:00:09]} 44. h4 {[%emt 0:08:33]} Rh7 {[%emt 0:03:55]} 45. Kxg2 {[%emt 0:02:41]} Rxh4 {[%emt 0:00:12]} 46. Re3 {[%emt 0:01:50]} Rxa4 {[%emt 0:01:05]} 47. Kf3 {[%emt 0:00:06]} Rf4+ {[%emt 0:00:30]} 48. Kg3 {[%emt 0:00:09]} Re4 {[%emt 0:00:15]} 49. Rd3 {[%emt 0:00:22]} Kxe5 {[%emt 0:00:20]} 50. Kf3 {[%emt 0:00:15]} a4 {[%emt 0:01:42]} 51. Rd8 {[%emt 0:00:11]} Rc4 {[%emt 0:00:07]} 52. Ra8 {[%emt 0:01:30]} Rxc3+ {[%emt 0:00:15]} 0-1

[Event "Czech Open GM 2020"]
[Site "Pardubice"]
[Date "2020.09.26"]
[Round "7.19"]
[White "Hlavina, Matous"]
[Black "Storme, Isak"]
[Result "0-1"]
[ECO "C45"]
[WhiteElo "1973"]
[BlackElo "2353"]
[Annotator "ChessBase"]
[PlyCount "54"]
[EventDate "2020.09.21"]
[EventCountry "CZE"]
[SourceTitle "playchess.com"]
[Source "ChessBase"]
[SourceQuality "1"]
[TimeControl "40/5400+30:1800+30"]

1. e4 {[%emt 0:06:05]} e5 {[%emt 0:00:05]} 2. Nf3 {[%emt 0:00:05]} Nc6 {[%emt 0:00:04]} 3. d4 {[%emt 0:00:04]} exd4 {[%emt 0:00:05]} 4. Nxd4 {[%emt 0:00:04]} Nf6 {[%emt 0:00:05]} 5. Nxc6 {[%emt 0:00:07]} bxc6 {[%emt 0:00:04]} 6. e5 {[%emt 0:00:09]} Nd5 {[%emt 0:00:03]} 7. c4 {[%emt 0:01:01]} Bb4+ {[%emt 0:00:25]} 8. Bd2 {[%emt 0:00:43]} Bxd2+ {[%emt 0:00:07]} 9. Nxd2 {[%emt 0:00:31]} Nb6 {[%emt 0:00:09]} 10. Bd3 {[%emt 0:01:28]} d6 {[%emt 0:00:23]} 11. exd6 {[%emt 0:00:40]} Qxd6 {[%emt 0:00:38]} 12. Nf3 {[%emt 0:05:47]} Qb4+ {[%emt 0:00:31]} 13. Qd2 {[%emt 0:00:28]} Qxd2+ {[%emt 0:00:06]} 14. Nxd2 {[%emt 0:01:25]} O-O {[%emt 0:00:11]} 15. O-O-O {[%emt 0:00:23]} Be6 {[%emt 0:00:06]} 16. b3 {[%emt 0:00:40]} a5 {[%emt 0:00:33]} 17. Kc2 {[%emt 0:03:10]} a4 {[%emt 0:00:36]} 18. b4 {[%emt 0:01:07]} a3 {[%emt 0:04:19]} 19. f4 {[%emt 0:03:53]} g6 {[%emt 0:05:31]} 20. Rhe1 {[%emt 0:04:30]} Rfd8 {[%emt 0:00:27]} 21. g3 {[%emt 0:03:04]} Na4 {[%emt 0:02:18]} 22. Be4 {[%emt 0:03:17]} Nb2 {[%emt 0:00:19]} 23. Rc1 {[%emt 0:01:19]} Rab8 {[%emt 0:05:50]} 24. Bxc6 {[%emt 0:12:04]} Rxb4 {[%emt 0:02:03]} 25. Bd5 {[%emt 0:04:25]} Bf5+ {[%emt 0:02:39]} 26. Kc3 {[%emt 0:05:24]} c5 {[%emt 0:01:47]} 27. Nb3 {[%emt 0:01:42]} Rxc4+ {[%emt 0:04:47]} 0-1

[Event "Czech Open GM 2020"]
[Site "Pardubice"]
[Date "2020.09.26"]
[Round "7.20"]
[White "Bulockin, Martin"]
[Black "Pogan, Nikolas"]
[Result "1-0"]
[ECO "B11"]
[WhiteElo "2297"]
[BlackElo "2212"]
[Annotator "ChessBase"]
[PlyCount "79"]
[EventDate "2020.09.21"]
[EventCountry "CZE"]
[SourceTitle "playchess.com"]
[Source "ChessBase"]
[SourceQuality "1"]
[TimeControl "40/5400+30:1800+30"]

1. e4 {[%emt 0:00:00]} c6 {[%emt 0:02:32]} 2. Nc3 {[%emt 0:00:00]} d5 {[%emt 0:00:07]} 3. Nf3 {[%emt 0:00:00]} Bg4 {[%emt 0:00:38]} 4. h3 {[%emt 0:00:00]} Bxf3 {[%emt 0:00:12]} 5. Qxf3 {[%emt 0:00:00]} e6 {[%emt 0:00:14]} 6. d4 {[%emt 0:00:04]} Nf6 {[%emt 0:00:14]} 7. Bd3 {[%emt 0:00:10]} Bb4 {[%emt 0:08:56]} 8. e5 {[%emt 0:06:57]} Nfd7 {[%emt 0:01:31]} 9. Bd2 {[%emt 0:01:57]} a6 {[%emt 0:16:08]} 10. Qg4 {[%emt 0:13:44]} g6 {[%emt 0:01:14]} 11. O-O {[%emt 0:04:11]} Be7 {[%emt 0:11:42]} 12. Rae1 {[%emt 0:05:31]} h5 {[%emt 0:12:25]} 13. Qg3 {[%emt 0:03:31]} Nf8 {[%emt 0:00:07]} 14. Ne2 {[%emt 0:07:15]} c5 {[%emt 0:01:27]} 15. dxc5 {[%emt 0:03:20]} Bxc5 {[%emt 0:00:05]} 16. Bg5 {[%emt 0:01:21]} Be7 {[%emt 0:00:21]} 17. Bxe7 {[%emt 0:04:40]} Qxe7 {[%emt 0:00:07]} 18. c4 {[%emt 0:00:56]} dxc4 {[%emt 0:02:51]} 19. Be4 {[%emt 0:03:37]} Nh7 {[%emt 0:05:53]} 20. Nf4 {[%emt 0:04:02]} Ng5 {[%emt 0:08:34]} 21. Bxg6 {[%emt 0:05:28]} h4 {[%emt 0:00:53]} 22. Qg4 {[%emt 0:01:12]} Rg8 {[%emt 0:08:22]} 23. Bh7 {[%emt 0:02:22]} Rh8 {[%emt 0:01:05]} 24. Be4 {[%emt 0:01:28]} Nxe4 {[%emt 0:01:06]} 25. Rxe4 {[%emt 0:00:30]} Nc6 {[%emt 0:01:14]} 26. Rxc4 {[%emt 0:00:55]} O-O-O {[%emt 0:00:37]} 27. Qe2 {[%emt 0:02:02]} Kb8 {[%emt 0:01:18]} 28. Rfc1 {[%emt 0:01:36]} Qd7 {[%emt 0:07:13]} 29. Qe3 {[%emt 0:02:52]} Qc7 {[%emt 0:01:04]} 30. Nd3 {[%emt 0:02:10]} Qa5 {[%emt 0:00:34]} 31. Nc5 {[%emt 0:02:23]} Rd5 {[%emt 0:01:19]} 32. Nxb7 {[%emt 0:00:52]} Kxb7 {[%emt 0:01:18]} 33. Rxc6 {[%emt 0:00:02]} Rhd8 {[%emt 0:00:17]} 34. R6c3 {[%emt 0:04:21]} Rd1+ {[%emt 0:01:04]} 35. Rxd1 {[%emt 0:00:35]} Rxd1+ {[%emt 0:00:05]} 36. Kh2 {[%emt 0:00:01]} Qd5 {[%emt 0:01:29]} 37. Rb3+ {[%emt 0:00:47]} Kc8 {[%emt 0:00:03]} 38. Qc3+ {[%emt 0:00:36]} Kd7 {[%emt 0:00:18]} 39. Rb8 {[%emt 0:00:43]} Ke7 {[%emt 0:01:27]} 40. Qc7+ {[%emt 0:00:10]} 1-0

[Event "Czech Open GM 2020"]
[Site "Pardubice"]
[Date "2020.09.27"]
[Round "8.1"]
[White "Van Foreest, Lucas"]
[Black "Jarmula, Lukasz"]
[Result "1/2-1/2"]
[ECO "C28"]
[WhiteElo "2531"]
[BlackElo "2444"]
[Annotator "ChessBase"]
[PlyCount "75"]
[EventDate "2020.09.21"]
[EventCountry "CZE"]
[SourceTitle "playchess.com"]
[Source "ChessBase"]
[SourceQuality "1"]
[TimeControl "40/5400+30:1800+30"]

1. e4 {[%emt 0:00:11]} e5 {[%emt 0:00:00]} 2. Nc3 {[%emt 0:00:00]} Nc6 {[%emt 0:00:03]} 3. Bc4 {[%emt 0:00:13]} Nf6 {[%emt 0:00:56]} 4. d3 {[%emt 0:00:17]} Bb4 {[%emt 0:02:09]} 5. Nf3 {[%emt 0:01:20]} d5 {[%emt 0:07:14]} 6. exd5 {[%emt 0:01:05]} Nxd5 {[%emt 0:00:06]} 7. O-O {[%emt 0:00:36]} Nxc3 {[%emt 0:08:33]} 8. bxc3 {[%emt 0:00:07]} Be7 {[%emt 0:00:05]} 9. Qe2 {[%emt 0:11:30]} O-O {[%emt 0:27:50]} 10. Nxe5 {[%emt 0:00:23]} Nxe5 {[%emt 0:00:05]} 11. Qxe5 {[%emt 0:00:04]} Bf6 {[%emt 0:00:07]} 12. Qe1 {[%emt 0:02:18]} b6 {[%emt 0:02:10]} 13. Qe4 {[%emt 0:18:12]} Rb8 {[%emt 0:00:50]} 14. d4 {[%emt 0:01:59]} Re8 {[%emt 0:05:17]} 15. Qd5 {[%emt 0:15:14]} Qxd5 {[%emt 0:16:08]} 16. Bxd5 {[%emt 0:00:05]} Ba6 {[%emt 0:07:43]} 17. Rd1 {[%emt 0:00:23]} Rbd8 {[%emt 0:00:35]} 18. Bc6 {[%emt 0:05:56]} Re6 {[%emt 0:01:24]} 19. Bf3 {[%emt 0:00:55]} Be2 {[%emt 0:04:03]} 20. Bxe2 {[%emt 0:00:31]} Rxe2 {[%emt 0:00:06]} 21. Bd2 {[%emt 0:00:11]} c5 {[%emt 0:01:47]} 22. Kf1 {[%emt 0:01:10]} Re6 {[%emt 0:01:03]} 23. dxc5 {[%emt 0:05:32]} bxc5 {[%emt 0:00:23]} 24. Be3 {[%emt 0:01:11]} Rc8 {[%emt 0:01:26]} 25. Rab1 {[%emt 0:00:14]} Ra6 {[%emt 0:03:37]} 26. Rd7 {[%emt 0:01:24]} h5 {[%emt 0:01:51]} 27. Rbb7 {[%emt 0:04:42]} Rxa2 {[%emt 0:00:35]} 28. Rxa7 {[%emt 0:00:13]} Rxc2 {[%emt 0:01:05]} 29. Rxf7 {[%emt 0:00:31]} Rxc3 {[%emt 0:01:09]} 30. h3 {[%emt 0:02:01]} c4 {[%emt 0:03:01]} 31. g4 {[%emt 0:00:06]} hxg4 {[%emt 0:00:17]} 32. hxg4 {[%emt 0:00:00]} Rd3 {[%emt 0:02:02]} 33. g5 {[%emt 0:00:19]} Be5 {[%emt 0:00:45]} 34. Bf4 {[%emt 0:04:52]} Bb2 {[%emt 0:01:00]} 35. g6 {[%emt 0:02:13]} Rdd8 {[%emt 0:00:23]} 36. Rab7 {[%emt 0:03:04]} Bd4 {[%emt 0:00:32]} 37. Be3 {[%emt 0:02:25]} Be5 {[%emt 0:00:12]} 38. Bf4 {[%emt 0:00:45]} 1/2-1/2